bitfinex/quotes_ETHUSD_20241123
["timestamp","ask_amount","ask_price","bid_price","bid_amount"]
[1732368018434,4.5157,3406.0,3405.0,3.68269578]
[1732368018627,0.1,3406.3,3405.2,0.55]
[1732368018924,2.35802854,3406.5,3405.4,0.55]
[1732368018925,2.45802854,3406.5,3405.4,0.55]
[1732368019128,2.45802854,3406.5,3405.6,0.55]
[1732368019335,2.45802854,3406.5,3405.7,3.10333471]
[1732368019737,3.05468116,3406.5,3405.7,3.10333471]
[1732368020098,0.1,3406.0,3405.7,3.10333471]
[1732368021601,0.1,3406.2,3405.7,3.10333471]
[1732368021799,0.1,3406.3,3405.7,3.10333471]
[1732368023001,2.35802854,3406.5,3405.7,3.10333471]
[1732368023002,0.1,3405.8,3405.7,3.10333471]
[1732368023206,2.35802854,3406.5,3405.5,3.10333471]
[1732368023207,2.35802854,3406.1,3405.5,3.10333471]
[1732368023415,0.1,3406.4,3405.6,0.46258347]
[1732368024300,0.1,3406.4,3405.5,3.10333471]
[1732368024301,0.1,3406.1,3405.5,3.10333471]
[1732368024707,0.1,3406.3,3405.5,3.10333471]
[1732368025020,0.1,3406.1,3405.5,3.10333471]
[1732368025336,0.1,3406.3,3405.5,3.10333471]
[1732368025739,0.1,3406.1,3405.5,3.10333471]
[1732368026607,1.5685,3406.0,3405.5,3.10333471]
[1732368027335,1.5685,3406.0,3405.6,3.10333471]
[1732368028355,2.45802854,3405.7,3405.6,3.10333471]
[1732368030331,2.45802854,3405.7,3405.0,3.10333471]
[1732368030645,2.35802854,3405.7,3405.2,4.6089]
[1732368030846,0.1,3406.5,3405.4,0.55]
[1732368031046,0.58600502,3406.4,3405.6,0.55]
[1732368031245,0.58600502,3406.4,3405.5,3.13269214]
[1732368031246,0.58600502,3406.4,3405.7,0.42326921]
[1732368031943,0.53600502,3406.4,3405.7,0.42326921]
[1732368036869,0.1,3406.5,3406.0,0.48995617]
[1732368037785,0.1,3406.5,3405.9,3.30510739]
[1732368037786,0.1,3406.1,3405.9,3.30510739]
[1732368038146,0.1,3406.1,3405.4,3.10333471]
[1732368038289,0.1,3405.7,3405.4,3.10333471]
[1732368038497,0.1,3405.7,3405.0,3.10333471]
[1732368038498,0.1,3405.5,3405.0,3.10333471]
[1732368038651,0.1,3405.5,3405.1,0.46684347]
[1732368038856,0.1,3405.3,3405.1,0.46684347]
[1732368039058,0.1,3405.3,3405.0,3.10333471]
[1732368039365,0.05,3405.3,3405.0,3.10333471]
[1732368041303,0.05,3405.4,3405.0,3.10333471]
[1732368044826,1.581,3405.6,3405.0,3.10333471]
[1732368045196,2.35802854,3405.7,3405.0,3.10333471]
[1732368045417,2.35802854,3405.7,3405.1,3.10333471]
[1732368045632,0.05,3405.5,3405.1,3.10333471]
[1732368045923,0.05,3405.3,3405.1,3.10333471]
[1732368046733,1.97424705,3405.2,3405.1,3.10333471]
[1732368048405,1.97424705,3405.2,3404.7,3.10333471]
[1732368048630,1.97424705,3405.2,3404.8,3.10333471]
[1732368049732,0.05,3405.7,3404.9,0.02936692]
[1732368049939,0.05,3405.7,3404.9,0.48249447]
[1732368051240,1.97424705,3405.8,3405.1,1.5781]
[1732368051444,0.58885063,3406.0,3405.1,1.5781]
[1732368051445,1.97424705,3406.2,3405.2,0.23541985]
[1732368051592,3.57324705,3406.6,3405.4,1.5781]
[1732368051793,3.57324705,3406.6,3405.4,1.60745876]
[1732368051794,2.02424705,3406.6,3405.4,1.60745876]
[1732368052040,0.05,3406.4,3405.5,0.47107935]
[1732368052199,1.97424705,3406.6,3405.6,0.02935867]
[1732368052396,1.97424705,3406.6,3405.7,1.5781]
[1732368052621,1.97424705,3406.6,3405.8,0.23720858]
[1732368052934,1.97424705,3406.6,3405.9,3.10333471]
[1732368053183,1.97424705,3406.6,3406.0,3.10333471]
[1732368053639,0.0293151,3406.5,3406.0,3.10333471]
[1732368053839,2.02424705,3406.6,3406.0,3.10333471]
[1732368054141,0.05,3406.3,3406.0,3.10333471]
[1732368055161,0.05,3406.4,3406.0,3.10333471]
[1732368055325,2.02424705,3406.6,3406.0,3.10333471]
[1732368055531,0.05,3406.3,3406.0,3.10333471]
[1732368055861,0.05,3406.1,3406.0,3.10333471]
[1732368056027,0.05,3406.1,3404.9,1.5781]
[1732368056028,3.57324705,3406.2,3405.0,3.13269613]
[1732368056214,3.57324705,3406.2,3405.1,3.10333471]
[1732368056415,0.05,3405.8,3405.1,3.10333471]
[1732368056658,2.02424705,3405.8,3405.1,3.10333471]
[1732368056863,2.02424705,3405.8,3405.1,3.58725918]
[1732368057063,0.05,3405.6,3405.1,3.58725918]
[1732368057719,0.05,3405.6,3405.1,3.10333471]
[1732368059556,1.549,3405.7,3405.1,3.10333471]
[1732368059959,1.97424705,3405.8,3405.1,3.10333471]
[1732368060264,1.97424705,3405.8,3405.2,1.91779576]
[1732368060414,1.97424705,3405.8,3405.3,3.10333471]
[1732368060415,0.05,3405.6,3405.3,3.10333471]
[1732368061128,1.97424705,3405.4,3405.3,3.10333471]
[1732368061431,1.97424705,3405.4,3404.9,3.10333471]
[1732368061626,1.97424705,3405.4,3404.9,3.57147818]
[1732368062273,0.05,3405.6,3404.9,3.57147818]
[1732368062581,2.02424705,3405.8,3405.0,0.02936437]
[1732368062735,2.02424705,3405.8,3405.1,0.51789426]
[1732368063073,1.97424705,3405.8,3405.2,0.02936231]
[1732368063373,3.0,3406.1,3405.3,1.5781]
[1732368063533,3.0,3406.1,3405.4,3.31587037]
[1732368063733,4.87424705,3406.2,3405.4,3.31587037]
[1732368063955,0.07556088,3406.1,3405.4,3.31587037]
[1732368064160,0.04624578,3406.1,3405.4,3.10333471]
[1732368064780,1.97424705,3405.8,3405.4,3.10333471]
[1732368065194,0.04624578,3405.6,3405.4,3.10333471]
[1732368065888,0.41415657,3405.6,3405.4,3.10333471]
[1732368066045,0.0293151,3405.5,3405.4,3.10333471]
[1732368067079,0.41415657,3405.6,3405.4,3.10333471]
[1732368067260,0.04624578,3405.6,3405.4,3.10333471]
[1732368067464,0.07556088,3405.6,3405.4,3.10333471]
[1732368067677,0.74347167,3405.6,3405.4,3.10333471]
[1732368068366,0.04624578,3405.6,3405.4,3.10333471]
[1732368069586,0.04624578,3405.6,3404.6,3.10333471]
[1732368069796,0.04624578,3405.6,3404.7,4.79709888]
[1732368069966,0.04624578,3405.6,3404.8,0.47970989]
[1732368070415,2.02049283,3405.8,3404.9,0.02936418]
[1732368070755,2.60695273,3405.8,3404.9,0.02936418]
[1732368070978,0.04624578,3405.6,3405.0,0.52768088]
[1732368071582,0.04624578,3405.3,3404.7,3.10333471]
[1732368071762,1.97424705,3405.4,3404.7,3.10333471]
[1732368071980,1.97424705,3405.4,3404.8,0.31033347]
[1732368072171,1.97424705,3405.4,3404.9,1.6644]
[1732368072593,1.97424705,3405.4,3404.8,0.31033347]
[1732368072897,0.04624578,3404.9,3404.3,3.10333471]
[1732368073096,1.97424705,3405.0,3404.4,3.10333471]
[1732368073302,0.04624578,3404.9,3404.4,3.10333471]
[1732368076693,0.04624578,3406.1,3404.7,1.6019]
[1732368076901,0.04624578,3406.1,3404.8,3.68269429]
[1732368077204,1.97424705,3406.3,3405.1,1.6019]
[1732368077355,1.97424705,3406.3,3405.3,1.6019]
[1732368077551,2.02049283,3406.3,3405.4,0.02935836]
[1732368077755,2.02049283,3406.3,3405.5,3.10333471]
[1732368078192,1.97424705,3406.3,3405.5,3.10333471]
[1732368078396,1.97424705,3406.3,3405.6,0.47345931]
[1732368078898,2.01330987,3406.3,3405.6,0.47345931]
[1732368079403,1.9913236,3406.3,3405.6,0.47345931]
[1732368079604,1.94507782,3406.3,3405.6,0.47345931]
[1732368081365,1.94507782,3406.3,3405.7,3.10333471]
[1732368083067,1.94507782,3406.3,3405.8,0.02935842]
[1732368083416,3.04624578,3406.6,3405.9,3.10333471]
[1732368084286,0.04624578,3406.6,3405.9,3.10333471]
[1732368084472,1.97424705,3406.7,3406.0,3.57385818]
[1732368084675,0.04624578,3407.2,3406.2,1.625]
[1732368084925,0.04624578,3407.2,3406.3,3.13268524]
[1732368085513,0.04624578,3407.2,3406.3,3.10333471]
[1732368086015,0.57153405,3407.3,3406.4,0.02935055]
[1732368086219,1.97424705,3407.5,3406.5,1.625]
[1732368086417,0.0293151,3408.1,3406.9,1.625]
[1732368086418,0.04624578,3408.1,3406.9,1.625]
[1732368086715,0.04624578,3408.1,3407.1,1.625]
[1732368086916,3.67799283,3408.3,3407.2,0.02934281]
[1732368087148,0.58170187,3408.0,3407.2,0.02934281]
[1732368087355,0.04624578,3407.1,3406.7,8.85]
[1732368087638,2.02049283,3407.1,3406.8,8.85]
[1732368087841,0.04624578,3406.6,3406.5,8.85]
[1732368088549,1.97424705,3407.1,3406.5,10.475]
[1732368088830,0.04624578,3407.3,3406.5,10.475]
[1732368090636,0.04624578,3407.3,3406.5,11.5225]
[1732368090958,0.04624578,3406.9,3406.5,10.475]
[1732368091262,0.04624578,3406.7,3406.5,10.475]
[1732368091396,2.40381752,3406.7,3405.8,1.625]
[1732368091737,0.04624578,3406.4,3405.9,8.85]
[1732368093048,1.6575,3406.5,3405.9,8.85]
[1732368093357,0.04624578,3406.6,3405.9,9.75417362]
[1732368093532,0.04624578,3406.1,3405.9,8.85]
[1732368093744,0.04329374,3405.6,3405.1,1.625]
[1732368094051,2.40086548,3405.6,3405.2,8.85]
[1732368094249,2.35757174,3405.6,3405.2,9.735]
[1732368094624,0.04329374,3405.5,3405.2,9.735]
[1732368094823,2.35757174,3405.6,3405.2,9.735]
[1732368095064,0.04329374,3405.5,3405.2,9.735]
[1732368095266,0.04329374,3405.5,3405.2,8.85]
[1732368096727,2.35757174,3405.6,3405.2,8.85]
[1732368097127,0.04329374,3405.5,3405.2,8.85]
[1732368097326,0.04329374,3405.9,3405.2,8.85]
[1732368097562,0.04329374,3406.2,3405.4,1.5678]
[1732368097864,0.04329374,3406.2,3405.5,1.13321626]
[1732368098050,0.07260884,3406.2,3405.5,1.13321626]
[1732368098953,0.04329374,3406.2,3405.5,1.13321626]
[1732368099368,0.04329374,3405.9,3405.4,1.5678]
[1732368099701,0.04329374,3406.1,3405.5,8.85]
[1732368099989,0.04329374,3405.7,3405.5,8.85]
[1732368100367,0.07260884,3405.7,3405.5,8.85]
[1732368100565,0.04329374,3405.1,3404.4,8.85]
[1732368100870,2.40086548,3405.1,3404.5,8.85]
[1732368102286,0.04329374,3405.1,3404.5,8.85]
[1732368103667,0.04329374,3405.8,3404.6,1.59716793]
[1732368103967,0.04329374,3405.8,3404.7,9.99889479]
[1732368104168,0.04329374,3405.8,3404.8,0.0293636]
[1732368104597,0.04329374,3405.8,3404.9,1.5641]
[1732368105404,3.04329374,3405.8,3404.9,1.5641]
[1732368105704,0.04329374,3405.8,3405.0,0.02936249]
[1732368105917,0.04329374,3405.8,3405.1,9.00934625]
[1732368106096,4.49439374,3406.6,3405.4,0.55]
[1732368106762,5.35018058,3407.1,3406.0,0.02935234]
[1732368107014,2.96329374,3407.1,3406.0,0.24369757]
[1732368107173,5.32086548,3407.1,3406.0,0.24369757]
[1732368108792,5.35018058,3407.1,3406.0,0.21434523]
[1732368108992,5.35018058,3407.1,3406.1,0.23577969]
[1732368109172,0.04329374,3406.8,3406.2,8.85]
[1732368109664,0.04329374,3407.0,3406.3,0.02935381]
[1732368109868,0.04329374,3407.0,3406.3,0.93793178]
[1732368110767,0.04329374,3406.8,3406.3,0.93793178]
[1732368110968,0.04329374,3406.8,3406.3,0.90857797]
[1732368111190,0.04329374,3406.8,3406.4,0.99943577]
[1732368111398,0.04329374,3407.0,3406.4,0.99943577]
[1732368113116,0.04329374,3406.8,3406.4,0.99943577]
[1732368113455,5.27757174,3407.1,3406.4,1.02878956]
[1732368113456,0.04329374,3407.0,3406.4,1.02878956]
[1732368113967,0.04329374,3407.0,3406.4,0.99943577]
[1732368114608,0.04329374,3407.0,3406.5,8.85]
[1732368117630,0.04329374,3407.0,3406.6,8.85]
[1732368120315,2.92,3407.1,3406.6,8.85]
[1732368120509,1.97201785,3407.2,3406.7,8.87935164]
[1732368120712,1.97201785,3407.2,3406.7,8.85]
[1732368120952,1.97201785,3407.2,3406.8,0.02935035]
[1732368121226,1.97201785,3408.0,3407.0,1.5641]
[1732368121549,1.97201785,3408.0,3407.2,1.5641]
[1732368121752,0.03037439,3408.2,3407.3,8.87934333]
[1732368121959,0.03037439,3408.2,3407.4,1.5641]
[1732368122102,0.03037439,3408.2,3407.5,1.59343915]
[1732368124203,0.01177439,3408.2,3407.5,1.59343915]
[1732368124403,0.00706857,3408.2,3407.5,1.59343915]
[1732368126648,0.00706857,3408.2,3407.6,8.85]
[1732368126856,0.00706857,3408.2,3407.7,1.69373751]
[1732368127153,0.00706857,3408.2,3407.8,9.90437375]
[1732368127350,0.00706857,3408.2,3407.9,0.02933753]
[1732368128068,0.00706857,3408.2,3408.1,2.2144]
[1732368128352,0.00706857,3408.2,3408.1,2.24373324]
[1732368130545,1.97201785,3409.4,3408.4,2.2144]
[1732368130849,0.04329374,3409.5,3408.5,8.87226211]
[1732368131057,0.04329374,3409.5,3408.5,8.84293143]
[1732368131260,0.58781344,3409.3,3408.5,8.84293143]
[1732368131413,0.58781344,3409.3,3408.6,1.10573314]
[1732368131619,0.58781344,3409.3,3408.7,0.0293309]
[1732368132165,0.01620924,3409.6,3408.7,0.0293309]
[1732368132166,0.01620924,3409.6,3408.9,0.55]
[1732368132471,0.01620924,3409.6,3409.0,0.02932463]
[1732368132612,0.01620924,3409.6,3409.2,0.55]
[1732368132811,0.01620924,3409.6,3409.3,8.87225631]
[1732368133011,0.01620924,3409.6,3409.3,8.84293143]
[1732368134141,0.01620924,3409.6,3409.4,0.02932463]
[1732368134345,0.01620924,3409.6,3409.5,1.6644]
[1732368134526,0.01620924,3409.6,3409.5,2.77306561]
[1732368134918,0.01620924,3409.6,3409.5,15.16599704]
[1732368136056,0.01620924,3409.6,3409.5,15.38044548]
[1732368136259,0.01620924,3409.6,3409.5,15.3805099]
[1732368136554,0.01620924,3409.6,3409.5,15.3803708]
[1732368136863,0.01620924,3409.6,3409.5,15.16599704]
[1732368137755,0.01620924,3409.6,3409.5,11.61599704]
[1732368137955,0.01620924,3409.6,3409.5,8.84293143]
[1732368139157,0.04329374,3409.4,3409.2,8.84293143]
[1732368140025,0.01620924,3409.6,3409.2,8.84293143]
[1732368140366,0.04329374,3409.4,3408.3,8.84293143]
[1732368140534,0.04329374,3409.4,3408.4,8.87226351]
[1732368140855,0.04329374,3409.5,3408.4,8.84293143]
[1732368141057,0.01620924,3409.6,3408.5,1.09895242]
[1732368141261,0.01620924,3409.6,3408.6,1.6644]
[1732368141553,0.01620924,3409.6,3408.7,0.02932821]
[1732368141714,0.01620924,3409.6,3408.8,0.27633491]
[1732368141917,0.01620924,3409.6,3408.9,0.02932821]
[1732368142118,0.01620924,3409.6,3408.9,0.57932821]
[1732368142353,0.01620924,3409.6,3409.0,1.6644]
[1732368142528,0.01620924,3409.6,3409.1,8.84293143]
[1732368142729,0.04329374,3409.5,3409.1,8.84293143]
[1732368145221,0.04329374,3409.5,3409.1,9.28827994]
[1732368145532,0.01620924,3409.6,3409.3,1.5994]
[1732368146221,0.01620924,3409.6,3409.2,0.57932985]
[1732368146415,0.01620924,3409.6,3409.1,9.28827994]
[1732368147632,0.01620924,3409.6,3409.2,8.84293143]
[1732368147847,0.01620924,3409.6,3409.3,0.0293273]
[1732368148024,0.01620924,3409.6,3409.5,1.5994]
[1732368148224,0.01620924,3409.6,3409.5,2.17872301]
[1732368148482,0.01620924,3409.6,3409.5,2.39396665]
[1732368148619,0.01620924,3409.6,3409.5,2.17872301]
[1732368148824,0.01620924,3409.6,3409.5,3.37377125]
[1732368149261,0.58274873,3410.4,3409.6,9.37672219]
[1732368149434,3.97827486,3410.7,3409.8,0.55]
[1732368149634,3.97827486,3410.7,3409.7,9.41596792]
[1732368149635,3.97827486,3410.7,3410.0,0.55]
[1732368150147,3.97827486,3410.7,3409.9,0.99659679]
[1732368150148,4.5954204,3410.7,3409.9,0.99659679]
[1732368150672,4.0215686,3410.7,3409.9,0.99659679]
[1732368150867,4.0215686,3410.7,3410.0,0.98526378]
[1732368151025,3.97827486,3410.7,3410.0,0.98526378]
[1732368151437,0.5726158,3410.8,3410.0,0.98526378]
[1732368151638,0.04329374,3410.9,3410.2,1.5994]
[1732368151836,0.04329374,3410.9,3410.3,0.21547607]
[1732368152038,0.04329374,3410.9,3410.4,8.82672219]
[1732368152229,2.4262837,3410.9,3410.4,8.82672219]
[1732368152455,0.04329374,3410.7,3410.4,8.82672219]
[1732368153235,5.35367486,3410.9,3410.4,8.82672219]
[1732368153448,2.35367486,3410.9,3410.4,8.82672219]
[1732368153758,0.57577619,3411.1,3410.6,1.5994]
[1732368153925,1.6246,3411.3,3410.6,1.5994]
[1732368154126,2.3969686,3411.5,3410.6,1.62871349]
[1732368154341,2.3969686,3411.5,3410.7,1.40422762]
[1732368154562,2.3969686,3411.5,3410.7,1.21812342]
[1732368154947,5.3969686,3411.5,3410.7,1.21812342]
[1732368155147,5.3969686,3411.5,3410.7,1.18881079]
[1732368155349,2.35367486,3411.5,3410.8,8.85603508]
[1732368155663,0.04584473,3411.7,3411.0,1.5249]
[1732368155860,0.04584473,3411.7,3411.1,9.62138366]
[1732368156073,0.04584473,3411.7,3411.2,9.04207444]
[1732368156263,0.57483977,3411.6,3411.3,0.02930851]
[1732368156468,0.57483977,3411.6,3411.3,1.03490933]
[1732368156993,0.57483977,3411.6,3411.2,8.82672219]
[1732368157153,0.04329374,3411.5,3411.2,8.82672219]
[1732368157698,0.57483977,3411.6,3411.2,8.82672219]
[1732368158386,2.3969686,3411.5,3411.2,8.82672219]
[1732368158568,0.04329374,3410.9,3410.4,8.82672219]
[1732368158892,0.04329374,3410.9,3410.5,9.04204594]
[1732368159195,2.35367486,3411.0,3410.5,8.82672219]
[1732368159390,0.04329374,3410.9,3410.6,0.21534947]
[1732368159551,0.04329374,3410.9,3410.5,8.82672219]
[1732368159747,0.04329374,3411.2,3410.5,8.82672219]
[1732368160160,0.04329374,3410.9,3410.5,8.82672219]
[1732368160362,0.04329374,3410.7,3410.5,8.82672219]
[1732368160578,0.04329374,3410.7,3410.6,8.82672219]
[1732368160579,1.67619374,3410.7,3410.6,8.82672219]
[1732368160893,4.0298686,3410.7,3410.6,8.82672219]
[1732368161648,2.35367486,3410.7,3410.6,8.82672219]
[1732368161851,0.04329374,3411.5,3410.6,9.70939441]
[1732368162091,0.04329374,3411.0,3410.6,9.70939441]
[1732368163151,0.04329374,3411.2,3410.7,0.02931649]
[1732368163398,2.3969686,3411.5,3410.7,0.02931649]
[1732368163694,2.3969686,3411.5,3410.8,9.80059328]
[1732368163904,2.3969686,3411.5,3410.8,8.82672219]
[1732368164886,0.04329374,3411.5,3410.8,8.82672219]
[1732368165189,0.04329374,3411.5,3410.9,1.58621329]
[1732368165557,0.04329374,3411.5,3410.9,1.5569]
[1732368166091,0.04329374,3411.5,3410.9,1.58621323]
[1732368166293,0.04329374,3411.5,3411.0,9.86508441]
[1732368166497,2.31330261,3411.7,3411.1,0.0293128]
[1732368166798,2.31330261,3411.7,3411.2,8.82672219]
[1732368166996,2.26330261,3411.7,3411.2,8.82672219]
[1732368167307,0.04329374,3411.5,3411.2,9.86508441]
[1732368167469,0.59126414,3411.7,3411.3,8.82672219]
[1732368167667,0.04329374,3411.5,3411.3,8.82672219]
[1732368167854,0.59126414,3411.7,3411.3,8.82672219]
[1732368168354,0.59126414,3411.7,3411.4,8.82672219]
[1732368169789,0.59046414,3411.7,3411.4,8.82672219]
[1732368169995,0.57445765,3411.7,3411.4,8.82672219]
[1732368170193,0.57445765,3411.7,3411.5,0.88267222]
[1732368170558,1.56059374,3412.3,3411.6,1.5569]
[1732368170753,1.56059374,3412.3,3411.6,1.58620549]
[1732368171057,1.56059374,3412.3,3411.7,1.12955999]
[1732368171376,0.04329374,3412.1,3411.7,1.12955999]
[1732368171586,3.9142686,3412.3,3411.5,0.02930771]
[1732368171786,3.9142686,3412.3,3411.8,8.82672219]
[1732368171787,2.3969686,3412.3,3411.8,8.82672219]
[1732368172095,2.3969686,3412.3,3411.9,8.82672219]
[1732368172301,0.59735017,3412.2,3411.9,8.82672219]
[1732368173358,0.59735017,3412.2,3412.0,1.5569]
[1732368173559,0.59735017,3412.2,3411.9,8.82672219]
[1732368173787,0.04329374,3412.0,3411.9,8.82672219]
[1732368174301,1.5424,3412.1,3411.9,8.82672219]
[1732368174504,0.04329374,3412.2,3411.9,9.70939441]
[1732368174663,0.04329374,3412.9,3412.0,10.36542219]
[1732368174866,0.04329374,3412.9,3412.1,1.15410946]
[1732368175207,0.04329374,3412.9,3412.2,1.5387]
[1732368175366,0.04329374,3412.9,3412.2,1.56800002]
[1732368176296,0.59947942,3412.6,3412.2,1.5387]
[1732368176503,0.59947942,3412.6,3412.2,2.68772316]
[1732368177108,0.59947942,3412.6,3412.1,0.02930003]
[1732368177109,0.64277316,3412.6,3412.1,0.02930003]
[1732368177309,2.99644802,3412.6,3412.0,8.82672219]
[1732368177511,2.95315428,3412.6,3412.0,8.82672219]
[1732368177715,2.95315428,3412.6,3412.1,9.86326441]
[1732368177915,3.89607486,3412.2,3412.1,8.82672219]
[1732368178085,0.04329374,3411.7,3411.5,8.82672219]
[1732368178523,0.04329374,3411.7,3411.3,8.82672219]
[1732368178734,0.04329374,3411.5,3411.3,8.82672219]
[1732368178873,0.04329374,3411.5,3410.8,1.5387]
[1732368178874,0.04329374,3411.5,3411.4,8.82672219]
[1732368179397,0.04329374,3412.4,3411.4,11.24809441]
[1732368179576,2.3969686,3412.2,3411.5,8.82672219]
[1732368179778,2.3969686,3412.2,3411.5,9.95153163]
[1732368180485,0.04329374,3412.0,3411.5,9.95153163]
[1732368181046,0.04329374,3411.6,3411.5,8.82672219]
[1732368181202,0.04329374,3411.6,3410.9,10.36542219]
[1732368181402,0.04329374,3411.6,3411.0,1.03654222]
[1732368182324,2.3969686,3411.8,3411.0,1.06585477]
[1732368182624,0.04329374,3411.5,3411.0,1.03654222]
[1732368182784,0.04329374,3411.5,3411.1,1.14019644]
[1732368183786,0.04329374,3411.7,3411.1,1.14019644]
[1732368183988,2.35367486,3411.8,3411.2,1.15056186]
[1732368184617,0.04329374,3411.5,3410.9,10.36542219]
[1732368185203,0.04329374,3411.5,3411.0,0.02931258]
[1732368185602,0.04329374,3411.5,3410.9,10.36542219]
[1732368185940,0.04329374,3411.5,3411.0,1.03654222]
[1732368186550,2.35367486,3411.8,3411.1,0.02931258]
[1732368186843,0.04329374,3412.1,3411.3,1.5993]
[1732368187001,5.35367486,3412.2,3411.4,0.19217017]
[1732368187201,0.04329374,3412.5,3411.5,0.55]
[1732368187413,2.35367486,3412.6,3411.7,0.55]
[1732368187601,2.35367486,3412.6,3411.8,8.85602534]
[1732368187815,2.35367486,3412.6,3411.9,8.82672219]
[1732368188014,0.04329374,3412.4,3412.0,9.76439441]
[1732368188212,0.04329374,3412.4,3412.0,8.82672219]
[1732368188416,2.3969686,3412.2,3412.0,8.82672219]
[1732368188645,1.6297,3412.1,3412.0,8.82672219]
[1732368188822,1.6297,3412.1,3411.4,8.82672219]
[1732368188823,0.04329374,3411.6,3411.4,8.82672219]
[1732368189023,0.04329374,3411.6,3411.5,8.82672219]
[1732368192831,0.04329374,3411.6,3411.1,8.82672219]
[1732368193250,0.04329374,3411.6,3411.1,9.86932441]
[1732368193922,0.04329374,3411.4,3411.1,9.86932441]
[1732368195346,2.35367486,3411.3,3411.2,8.82672219]
[1732368195650,2.35367486,3411.7,3411.2,8.82672219]
[1732368196644,1.96706489,3411.5,3411.2,8.82672219]
[1732368198850,1.96706489,3411.5,3411.3,8.82672219]
[1732368199046,1.96706489,3411.5,3411.3,9.70939441]
[1732368199258,1.96706489,3411.5,3411.3,8.82672219]
[1732368200074,1.96706486,3411.5,3411.3,8.82672219]
[1732368201137,1.96706486,3411.5,3411.4,1.5993]
[1732368201670,1.96706486,3411.5,3411.4,8.82672219]
[1732368204701,1.96706486,3411.5,3411.0,8.82672219]
[1732368207565,1.96706489,3411.1,3410.7,8.82672219]
[1732368207770,1.96706489,3411.1,3409.5,0.28776337]
[1732368207771,1.5188,3411.0,3410.3,8.82672219]
[1732368210572,1.5188,3409.7,3409.1,1.04170222]
[1732368210992,1.96706489,3409.8,3409.1,1.04170222]
[1732368211410,1.96706489,3409.8,3409.2,0.02933114]
[1732368211614,1.96706489,3409.8,3409.1,1.07103]
[1732368211771,1.96706489,3409.8,3409.2,1.14880522]
[1732368212907,1.5188,3410.1,3409.2,1.14880522]
[1732368213321,1.5188,3410.1,3409.3,0.02932782]
[1732368213674,1.5188,3410.1,3409.4,8.82672219]
[1732368214224,1.655,3410.5,3409.5,1.67642715]
[1732368214375,1.655,3410.5,3409.6,8.82672219]
[1732368214576,4.96706489,3410.6,3409.7,8.85604635]
[1732368214577,1.96706489,3410.6,3409.7,8.85604635]
[1732368214783,1.96706489,3410.6,3409.8,1.05031463]
[1732368215235,1.96706489,3410.6,3409.9,0.0293205]
[1732368215536,1.96706489,3411.0,3410.0,1.6471]
[1732368215832,1.99637999,3411.0,3410.0,1.67641904]
[1732368216199,1.99637999,3411.0,3410.0,1.6471]
[1732368217238,4.655,3411.5,3410.2,1.6471]
[1732368217399,1.96706489,3411.3,3410.3,8.85603977]
[1732368217737,1.96706489,3411.3,3410.3,8.82672219]
[1732368217906,0.0293151,3411.2,3410.4,1.04738222]
[1732368218239,1.96706489,3411.3,3410.4,1.04738222]
[1732368218534,1.96706489,3411.3,3410.5,0.02931674]
[1732368219197,1.96706489,3411.3,3410.6,8.82672219]
[1732368219507,1.96706489,3411.3,3410.8,1.6471]
[1732368220395,1.96706489,3411.3,3410.8,1.6764153]
[1732368220629,2.89,3411.6,3410.8,1.6471]
[1732368221147,0.59414976,3411.5,3410.8,1.6471]
[1732368221306,0.59414976,3411.5,3410.8,2.79351643]
[1732368221514,0.59414976,3411.5,3410.9,8.85603567]
[1732368221835,0.59414976,3411.5,3411.0,8.82672219]
[1732368222544,0.47166969,3411.5,3411.0,8.82672219]
[1732368225614,0.47166969,3411.5,3411.1,0.02931148]
[1732368225850,0.47166969,3411.5,3411.2,9.71232556]
[1732368226034,0.47166969,3411.5,3411.2,8.82672219]
[1732368228753,0.47166969,3411.5,3411.3,8.82672219]
[1732368231741,0.47166969,3411.5,3411.4,8.82672219]
[1732368232365,2.01916969,3411.5,3411.4,8.82672219]
[1732368233348,0.47166969,3411.5,3411.4,8.82672219]
[1732368235362,1.5475,3412.0,3411.4,8.82672219]
[1732368237784,1.5475,3412.0,3411.5,8.82672219]
[1732368238279,0.59275334,3411.6,3411.5,8.82672219]
[1732368240874,0.59275334,3411.6,3411.1,0.1951732]
[1732368240875,0.59275334,3411.6,3411.2,8.82672219]
[1732368241248,1.55981823,3411.9,3411.2,8.82672219]
[1732368241482,0.59060425,3411.6,3411.2,8.82672219]
[1732368241684,0.0293151,3411.5,3411.2,8.82672219]
[1732368242043,0.59060425,3411.6,3411.2,8.82672219]
[1732368242495,0.59060425,3411.6,3411.2,9.26465968]
[1732368243859,0.59060425,3411.6,3411.3,8.82672219]
[1732368244807,0.59060425,3411.6,3411.3,10.48812219]
[1732368244808,0.59060412,3411.6,3411.3,10.48812219]
[1732368244953,3.0,3412.2,3411.4,8.82672219]
[1732368245161,3.0,3412.2,3411.5,8.82672219]
[1732368246405,0.5742262,3411.7,3411.5,8.82672219]
[1732368246559,3.0,3412.2,3411.5,8.82672219]
[1732368246761,3.0,3412.2,3411.6,1.16002455]
[1732368246965,3.57366489,3412.3,3411.6,1.16002455]
[1732368247867,0.0293151,3412.2,3411.6,1.16002455]
[1732368248284,0.0293151,3412.2,3411.5,8.82672219]
[1732368248504,1.96706489,3411.9,3411.5,8.82672219]
[1732368249395,0.60762229,3411.8,3411.5,8.82672219]
[1732368249559,1.6066,3411.7,3411.5,8.82672219]
[1732368249759,1.6359151,3411.7,3411.1,8.82672219]
[1732368250308,1.96706489,3411.5,3411.1,8.82672219]
[1732368250606,1.96706489,3411.5,3409.7,0.32443756]
[1732368250607,1.6066,3411.3,3410.8,9.00184419]
[1732368250916,1.96706489,3410.9,3410.8,9.00184419]
[1732368251375,2.54537208,3411.8,3410.8,11.56342861]
[1732368252464,1.96706489,3411.8,3410.8,11.56342861]
[1732368252674,1.96706489,3411.8,3410.9,0.21595384]
[1732368252922,1.96706489,3411.8,3410.8,11.56342861]
[1732368253089,1.96706489,3411.8,3410.9,1.37231062]
[1732368253272,1.96706489,3411.8,3410.9,1.18565557]
[1732368253475,1.96706489,3411.8,3410.9,1.15634286]
[1732368254494,1.96706489,3411.9,3410.9,1.15634286]
[1732368254771,1.96706489,3411.9,3411.0,1.18195871]
[1732368255916,1.96706489,3411.9,3411.1,8.82672219]
[1732368258434,1.96706489,3411.5,3411.1,8.82672219]
[1732368258572,0.0293151,3411.4,3411.1,8.82672219]
[1732368258777,1.96706489,3411.5,3410.8,9.00184419]
[1732368259621,1.96706489,3411.1,3410.8,9.00184419]
[1732368260591,1.96706489,3411.1,3410.8,0.175122]
[1732368260796,2.54370724,3411.1,3410.8,0.175122]
[1732368260994,1.6066,3411.0,3410.8,0.175122]